[Event "Titled Tuesday Blitz February 15 Early 2022"]
[White "Fedoseev, Vladimir"]
[Black "Narayanan.S.L"]
[WhiteFideId "24130737"]
[BlackFideId "5058422"]
[WhiteElo "2726"]
[BlackElo "2494"]
[Result "1-0"]
[Round "11"]
[TimeControl "180+1"]
[Date "2022.02.15"]
[WhiteClock "0:01:04"]
[BlackClock "0:00:09"]

1. e4 {[%clk 0:03:00]}  e5 {[%clk 0:02:59]} 2. Nf3 {[%clk 0:03:01]}  Nc6 {[%clk 0:02:59]} 3. Bb5 {[%clk 0:03:00]}  Nf6 {[%clk 0:02:59]} 4. d3 {[%clk 0:02:59]}  Bc5 {[%clk 0:02:59]} 5. Bxc6 {[%clk 0:02:59]}  dxc6 {[%clk 0:02:59]} 6. Nc3 {[%clk 0:02:59]}  Bd6 {[%clk 0:02:57]} 7. Bg5 {[%clk 0:02:58]}  h6 {[%clk 0:02:56]} 8. Bh4 {[%clk 0:02:58]}  Qe7 {[%clk 0:02:23]} 9. h3 {[%clk 0:02:56]}  Be6 {[%clk 0:02:20]} 10. Qe2 {[%clk 0:02:46]}  O-O-O {[%clk 0:02:18]} 11. O-O-O {[%clk 0:02:46]}  Kb8 {[%clk 0:02:18]} 12. Bg3 {[%clk 0:02:13]}  Nd7 {[%clk 0:02:14]} 13. d4 {[%clk 0:02:11]}  f6 {[%clk 0:01:52]} 14. Kb1 {[%clk 0:02:10]}  a6 {[%clk 0:01:47]} 15. Qe3 {[%clk 0:02:05]}  Rhe8 {[%clk 0:01:43]} 16. Rd2 {[%clk 0:02:02]}  exd4 {[%clk 0:01:00]} 17. Nxd4 {[%clk 0:02:00]}  Bxg3 {[%clk 0:01:00]} 18. Qxg3 {[%clk 0:01:59]}  Ne5 {[%clk 0:01:01]} 19. Rhd1 {[%clk 0:01:49]}  Nc4 {[%clk 0:00:54]} 20. Rd3 {[%clk 0:01:49]}  Bc8 {[%clk 0:00:44]} 21. b3 {[%clk 0:01:48]}  Ne5 {[%clk 0:00:43]} 22. R3d2 {[%clk 0:01:47]}  g5 {[%clk 0:00:43]} 23. f4 {[%clk 0:01:46]}  gxf4 {[%clk 0:00:43]} 24. Qxf4 {[%clk 0:01:45]}  Qb4 {[%clk 0:00:36]} 25. Na4 {[%clk 0:01:25]}  Nc4 {[%clk 0:00:28]} 26. Nxc6+ {[%clk 0:01:20]}  bxc6 {[%clk 0:00:27]} 27. Rxd8 {[%clk 0:01:20]}  Rxd8 {[%clk 0:00:22]} 28. Rxd8 {[%clk 0:01:19]}  Qe1+ {[%clk 0:00:15]} 29. Qc1 {[%clk 0:01:19]}  Na3+ {[%clk 0:00:14]} 30. Kb2 {[%clk 0:01:18]}  Qb4 {[%clk 0:00:14]} 31. c3 {[%clk 0:01:14]}  Qe7 {[%clk 0:00:15]} 32. Rxc8+ {[%clk 0:01:09]}  Kxc8 {[%clk 0:00:14]} 33. c4 {[%clk 0:01:10]}  a5 {[%clk 0:00:13]} 34. Qc3 {[%clk 0:01:09]}  Qd6 {[%clk 0:00:09]} 35. c5 {[%clk 0:01:04]} 1-0


[Site "https://www.chess.com"]

[Event "Titled Tuesday Blitz February 15 Early 2022"]
[White "Gatterer, Florian"]
[Black "Hoffmann, Asa"]
[WhiteFideId "811688"]
[BlackFideId "2001470"]
[WhiteElo "2218"]
[BlackElo "2117"]
[Result "1-0"]
[Round "11"]
[TimeControl "180+1"]
[Date "2022.02.15"]
[WhiteClock "0:01:06"]
[BlackClock "0:00:21"]

1. Nf3 {[%clk 0:03:00]}  d6 {[%clk 0:02:56]} 2. c4 {[%clk 0:02:45]}  e5 {[%clk 0:02:55]} 3. Nc3 {[%clk 0:02:44]}  Nf6 {[%clk 0:02:54]} 4. d4 {[%clk 0:02:44]}  Nbd7 {[%clk 0:02:53]} 5. g3 {[%clk 0:02:43]}  c6 {[%clk 0:02:53]} 6. Bg2 {[%clk 0:02:43]}  Be7 {[%clk 0:02:52]} 7. O-O {[%clk 0:02:42]}  O-O {[%clk 0:02:52]} 8. h3 {[%clk 0:02:43]}  Qc7 {[%clk 0:02:52]} 9. b3 {[%clk 0:02:43]}  Re8 {[%clk 0:02:51]} 10. e3 {[%clk 0:02:43]}  Bf8 {[%clk 0:02:51]} 11. Bb2 {[%clk 0:02:43]}  a6 {[%clk 0:02:51]} 12. a4 {[%clk 0:02:42]}  a5 {[%clk 0:02:48]} 13. Kh2 {[%clk 0:02:41]}  b6 {[%clk 0:02:43]} 14. d5 {[%clk 0:02:39]}  c5 {[%clk 0:02:38]} 15. Ng5 {[%clk 0:02:31]}  Re7 {[%clk 0:02:33]} 16. Qd2 {[%clk 0:02:30]}  Ne8 {[%clk 0:02:32]} 17. f4 {[%clk 0:02:29]}  h6 {[%clk 0:02:31]} 18. Nf3 {[%clk 0:02:25]}  e4 {[%clk 0:02:27]} 19. Nh4 {[%clk 0:02:12]}  Ndf6 {[%clk 0:02:20]} 20. Qc2 {[%clk 0:02:06]}  Qd7 {[%clk 0:02:18]} 21. f5 {[%clk 0:01:53]}  Ra7 {[%clk 0:01:45]} 22. Rae1 {[%clk 0:01:45]}  Nh7 {[%clk 0:01:37]} 23. Nxe4 {[%clk 0:01:40]}  f6 {[%clk 0:01:27]} 24. Ng6 {[%clk 0:01:34]}  Rf7 {[%clk 0:01:25]} 25. Nd2 {[%clk 0:01:33]}  Be7 {[%clk 0:01:18]} 26. e4 {[%clk 0:01:31]}  Nf8 {[%clk 0:01:16]} 27. Nxf8 {[%clk 0:01:29]}  Bxf8 {[%clk 0:01:10]} 28. Nf3 {[%clk 0:01:28]}  Re7 {[%clk 0:01:00]} 29. Nh4 {[%clk 0:01:28]}  Nc7 {[%clk 0:00:58]} 30. Ng6 {[%clk 0:01:25]}  Re8 {[%clk 0:00:57]} 31. Nf4 {[%clk 0:01:23]}  Na6 {[%clk 0:00:56]} 32. Ne6 {[%clk 0:01:21]}  Nb4 {[%clk 0:00:56]} 33. Qd2 {[%clk 0:01:21]}  Qf7 {[%clk 0:00:53]} 34. Bf3 {[%clk 0:01:18]}  Kh7 {[%clk 0:00:44]} 35. Bc3 {[%clk 0:01:17]}  Bxe6 {[%clk 0:00:38]} 36. fxe6 {[%clk 0:01:13]}  Qg6 {[%clk 0:00:38]} 37. h4 {[%clk 0:01:09]}  Be7 {[%clk 0:00:29]} 38. Qe2 {[%clk 0:01:09]}  f5 {[%clk 0:00:21]} 39. Bh5 {[%clk 0:01:06]} 1-0


[Site "https://www.chess.com"]

[Event "Titled Tuesday Blitz February 15 Early 2022"]
[White "Golubka, Petro"]
[Black "Blokhin, Sofia"]
[WhiteFideId "14114224"]
[BlackFideId "4508190"]
[WhiteElo "2392"]
[BlackElo "1762"]
[Result "1-0"]
[Round "11"]
[TimeControl "180+1"]
[Date "2022.02.15"]
[WhiteClock "0:01:09"]
[BlackClock "0:00:01"]

1. d4 {[%clk 0:03:00]}  f5 {[%clk 0:02:58]} 2. h3 {[%clk 0:02:58]}  e6 {[%clk 0:02:58]} 3. g4 {[%clk 0:02:59]}  fxg4 {[%clk 0:02:55]} 4. hxg4 {[%clk 0:03:00]}  Nf6 {[%clk 0:02:48]} 5. g5 {[%clk 0:03:01]}  Ne4 {[%clk 0:02:34]} 6. Nf3 {[%clk 0:03:02]}  Be7 {[%clk 0:02:23]} 7. Qd3 {[%clk 0:02:57]}  d5 {[%clk 0:02:17]} 8. Nc3 {[%clk 0:02:56]}  Bb4 {[%clk 0:02:10]} 9. Bd2 {[%clk 0:02:54]}  Bxc3 {[%clk 0:02:08]} 10. Bxc3 {[%clk 0:02:54]}  b6 {[%clk 0:01:59]} 11. Qe3 {[%clk 0:02:51]}  Bb7 {[%clk 0:01:51]} 12. g6 {[%clk 0:02:50]}  h6 {[%clk 0:01:51]} 13. Bh3 {[%clk 0:02:50]}  Qe7 {[%clk 0:01:49]} 14. O-O-O {[%clk 0:02:48]}  Nd7 {[%clk 0:01:44]} 15. Be1 {[%clk 0:02:46]}  O-O-O {[%clk 0:01:43]} 16. Kb1 {[%clk 0:02:42]}  Kb8 {[%clk 0:01:40]} 17. a4 {[%clk 0:02:40]}  c5 {[%clk 0:01:39]} 18. a5 {[%clk 0:02:39]}  c4 {[%clk 0:01:36]} 19. Rg1 {[%clk 0:02:36]}  b5 {[%clk 0:01:25]} 20. Nd2 {[%clk 0:02:35]}  Ndf6 {[%clk 0:01:19]} 21. Nxe4 {[%clk 0:02:33]}  Nxe4 {[%clk 0:01:16]} 22. f3 {[%clk 0:02:33]}  Ng5 {[%clk 0:01:06]} 23. Bh4 {[%clk 0:02:32]}  Rde8 {[%clk 0:00:53]} 24. f4 {[%clk 0:02:29]}  Qb4 {[%clk 0:00:34]} 25. fxg5 {[%clk 0:02:28]}  hxg5 {[%clk 0:00:32]} 26. Bg3+ {[%clk 0:02:27]}  Ka8 {[%clk 0:00:30]} 27. Bg4 {[%clk 0:02:28]}  Qxa5 {[%clk 0:00:26]} 28. Qa3 {[%clk 0:02:28]}  Qb6 {[%clk 0:00:24]} 29. c3 {[%clk 0:02:17]}  a5 {[%clk 0:00:23]} 30. Be5 {[%clk 0:02:16]}  Rhg8 {[%clk 0:00:19]} 31. Rdf1 {[%clk 0:01:56]}  Ba6 {[%clk 0:00:18]} 32. Qc5 {[%clk 0:01:52]}  Qb7 {[%clk 0:00:17]} 33. Rf7 {[%clk 0:01:23]}  Rc8 {[%clk 0:00:13]} 34. Qd6 {[%clk 0:01:13]}  Rc6 {[%clk 0:00:08]} 35. Rxb7 {[%clk 0:01:09]}  Rxd6 {[%clk 0:00:07]} 36. Bxd6 {[%clk 0:01:10]}  Bxb7 {[%clk 0:00:06]} 37. Rf1 {[%clk 0:01:11]}  Rd8 {[%clk 0:00:05]} 38. Be5 {[%clk 0:01:11]}  b4 {[%clk 0:00:03]} 39. Rf7 {[%clk 0:01:11]}  bxc3 {[%clk 0:00:02]} 40. bxc3 {[%clk 0:01:12]}  Bc6 {[%clk 0:00:03]} 41. Rxg7 {[%clk 0:01:13]}  Bd7 {[%clk 0:00:01]} 42. Kc1 {[%clk 0:01:14]}  Ba4 {[%clk 0:00:01]} 43. Re7 {[%clk 0:01:11]}  Bb3 {[%clk 0:00:01]} 44. g7 {[%clk 0:01:11]}  a4 {[%clk 0:00:02]} 45. Bd6 {[%clk 0:01:10]}  Rxd6 {[%clk 0:00:01]} 46. g8=Q+ {[%clk 0:01:09]} 1-0


[Site "https://www.chess.com"]

[Event "Titled Tuesday Blitz February 15 Early 2022"]
[White "Gontcharov, Vladislav"]
[Black "Gelman, Alexander"]
[WhiteFideId "4123492"]
[BlackFideId "4118316"]
[WhiteElo "2503"]
[BlackElo "2375"]
[Result "1-0"]
[Round "11"]
[TimeControl "180+1"]
[Date "2022.02.15"]
[WhiteClock "0:00:38"]
[BlackClock "0:00:44"]

1. e4 {[%clk 0:03:00]}  c5 {[%clk 0:03:00]} 2. Nf3 {[%clk 0:02:59]}  e6 {[%clk 0:03:00]} 3. d4 {[%clk 0:03:00]}  cxd4 {[%clk 0:03:00]} 4. Nxd4 {[%clk 0:03:00]}  a6 {[%clk 0:03:01]} 5. Bd3 {[%clk 0:02:59]}  d6 {[%clk 0:03:01]} 6. c4 {[%clk 0:02:58]}  Nf6 {[%clk 0:03:01]} 7. O-O {[%clk 0:02:55]}  Bd7 {[%clk 0:03:02]} 8. Nc3 {[%clk 0:02:54]}  Nc6 {[%clk 0:03:02]} 9. Be3 {[%clk 0:02:53]}  Be7 {[%clk 0:03:02]} 10. Qe2 {[%clk 0:02:44]}  Ne5 {[%clk 0:03:01]} 11. Rac1 {[%clk 0:02:36]}  O-O {[%clk 0:03:01]} 12. Rfd1 {[%clk 0:02:35]}  Nxd3 {[%clk 0:02:59]} 13. Qxd3 {[%clk 0:02:34]}  Qc7 {[%clk 0:03:00]} 14. f3 {[%clk 0:02:32]}  Rac8 {[%clk 0:03:00]} 15. b3 {[%clk 0:02:24]}  h6 {[%clk 0:02:58]} 16. a4 {[%clk 0:02:19]}  h5 {[%clk 0:02:47]} 17. Nde2 {[%clk 0:02:12]}  Rfe8 {[%clk 0:02:45]} 18. Bg5 {[%clk 0:02:10]}  Red8 {[%clk 0:02:43]} 19. Kh1 {[%clk 0:02:07]}  Qa5 {[%clk 0:02:40]} 20. h4 {[%clk 0:01:58]}  Bc6 {[%clk 0:02:34]} 21. Ng3 {[%clk 0:01:49]}  g6 {[%clk 0:02:08]} 22. Qd2 {[%clk 0:01:36]}  Qb6 {[%clk 0:02:03]} 23. Rb1 {[%clk 0:01:33]}  Qc5 {[%clk 0:01:54]} 24. Nce2 {[%clk 0:01:27]}  b5 {[%clk 0:01:51]} 25. cxb5 {[%clk 0:01:23]}  axb5 {[%clk 0:01:51]} 26. b4 {[%clk 0:01:23]}  Qa7 {[%clk 0:01:41]} 27. a5 {[%clk 0:01:23]}  Bb7 {[%clk 0:01:40]} 28. Nf4 {[%clk 0:01:03]}  Rc4 {[%clk 0:01:37]} 29. Nd3 {[%clk 0:01:03]}  Rdc8 {[%clk 0:01:35]} 30. Qf4 {[%clk 0:01:01]}  e5 {[%clk 0:01:32]} 31. Qd2 {[%clk 0:00:57]}  Rc2 {[%clk 0:01:32]} 32. Qe1 {[%clk 0:00:54]}  Ba8 {[%clk 0:01:15]} 33. Rdc1 {[%clk 0:00:50]}  Qd4 {[%clk 0:01:13]} 34. Rd1 {[%clk 0:00:46]}  Qc4 {[%clk 0:01:07]} 35. Nf1 {[%clk 0:00:44]}  Qc7 {[%clk 0:00:47]} 36. Ne3 {[%clk 0:00:42]}  Rc3 {[%clk 0:00:47]} 37. Rdc1 {[%clk 0:00:42]}  Qa7 {[%clk 0:00:44]} 38. Rxc3 {[%clk 0:00:38]}  Rxc3 {[%clk 0:00:44]} 39. Qxc3 {[%clk 0:00:38]} 1-0


[Site "https://www.chess.com"]

[Event "Titled Tuesday Blitz February 15 Early 2022"]
[White "Goryachkina, Aleksandra"]
[Black "Manukyan, Artyom"]
[WhiteFideId "4147103"]
[BlackFideId "13305786"]
[WhiteElo "2426"]
[BlackElo "2034"]
[Result "1-0"]
[Round "11"]
[TimeControl "180+1"]
[Date "2022.02.15"]
[WhiteClock "0:00:42"]
[BlackClock "0:00:01"]

1. e4 {[%clk 0:03:00]}  c5 {[%clk 0:02:25]} 2. Nf3 {[%clk 0:02:59]}  d6 {[%clk 0:02:26]} 3. c3 {[%clk 0:02:59]}  Nf6 {[%clk 0:02:25]} 4. Be2 {[%clk 0:02:59]}  g6 {[%clk 0:02:26]} 5. O-O {[%clk 0:02:59]}  Bg7 {[%clk 0:02:26]} 6. Bb5+ {[%clk 0:02:59]}  Bd7 {[%clk 0:02:26]} 7. Bxd7+ {[%clk 0:02:57]}  Qxd7 {[%clk 0:02:27]} 8. Re1 {[%clk 0:02:55]}  O-O {[%clk 0:02:27]} 9. d4 {[%clk 0:02:54]}  cxd4 {[%clk 0:02:28]} 10. cxd4 {[%clk 0:02:55]}  d5 {[%clk 0:02:27]} 11. e5 {[%clk 0:02:54]}  Ne4 {[%clk 0:02:28]} 12. Nc3 {[%clk 0:02:53]}  Nxc3 {[%clk 0:02:27]} 13. bxc3 {[%clk 0:02:54]}  Nc6 {[%clk 0:02:27]} 14. h4 {[%clk 0:02:51]}  Qg4 {[%clk 0:02:21]} 15. Qd3 {[%clk 0:02:47]}  Rac8 {[%clk 0:02:15]} 16. Bg5 {[%clk 0:02:27]}  h6 {[%clk 0:02:10]} 17. Bd2 {[%clk 0:02:20]}  Na5 {[%clk 0:02:09]} 18. Re2 {[%clk 0:01:58]}  Nc4 {[%clk 0:02:07]} 19. Rae1 {[%clk 0:01:57]}  e6 {[%clk 0:02:00]} 20. Bc1 {[%clk 0:01:51]}  Qf5 {[%clk 0:01:58]} 21. Qd1 {[%clk 0:01:49]}  Rc6 {[%clk 0:01:53]} 22. Nh2 {[%clk 0:01:46]}  h5 {[%clk 0:01:40]} 23. Bg5 {[%clk 0:01:39]}  Rfc8 {[%clk 0:01:39]} 24. Nf1 {[%clk 0:01:37]}  Rb6 {[%clk 0:01:29]} 25. Ng3 {[%clk 0:01:22]}  Qg4 {[%clk 0:01:27]} 26. Kh2 {[%clk 0:01:20]}  Nb2 {[%clk 0:00:55]} 27. Qc2 {[%clk 0:01:19]}  Rbc6 {[%clk 0:00:06]} 28. Qxb2 {[%clk 0:01:15]}  Rxc3 {[%clk 0:00:05]} 29. Qd2 {[%clk 0:01:04]}  Rc2 {[%clk 0:00:03]} 30. f3 {[%clk 0:00:47]}  Rxd2 {[%clk 0:00:03]} 31. Rxd2 {[%clk 0:00:42]}  Qxg3+ {[%clk 0:00:01]} 32. Kxg3 {[%clk 0:00:42]} 1-0


[Site "https://www.chess.com"]

[Event "Titled Tuesday Blitz February 15 Early 2022"]
[White "Grineva, Marianna"]
[Black "Matveeva, Olga"]
[WhiteFideId "14102013"]
[BlackFideId "24107018"]
[WhiteElo "1954"]
[BlackElo "2083"]
[Result "1-0"]
[Round "11"]
[TimeControl "180+1"]
[Date "2022.02.15"]
[WhiteClock "0:00:13"]
[BlackClock "0:00:10"]

1. e4 {[%clk 0:03:00]}  e6 {[%clk 0:02:59]} 2. d4 {[%clk 0:03:00]}  d5 {[%clk 0:02:58]} 3. Nd2 {[%clk 0:03:00]}  c5 {[%clk 0:02:55]} 4. exd5 {[%clk 0:03:00]}  Qxd5 {[%clk 0:02:53]} 5. Ngf3 {[%clk 0:03:00]}  cxd4 {[%clk 0:02:51]} 6. Bc4 {[%clk 0:02:59]}  Qd6 {[%clk 0:02:49]} 7. O-O {[%clk 0:02:59]}  Nf6 {[%clk 0:02:46]} 8. Nb3 {[%clk 0:02:53]}  Nc6 {[%clk 0:02:45]} 9. Nbxd4 {[%clk 0:02:52]}  Nxd4 {[%clk 0:02:43]} 10. Nxd4 {[%clk 0:02:53]}  Be7 {[%clk 0:02:41]} 11. c3 {[%clk 0:02:51]}  O-O {[%clk 0:02:38]} 12. Qe2 {[%clk 0:02:51]}  Qc7 {[%clk 0:02:20]} 13. Bb3 {[%clk 0:02:36]}  a5 {[%clk 0:02:06]} 14. a4 {[%clk 0:02:31]}  Bd7 {[%clk 0:02:05]} 15. Bc2 {[%clk 0:02:20]}  Qb6 {[%clk 0:01:45]} 16. Qd3 {[%clk 0:02:13]}  Rfd8 {[%clk 0:01:36]} 17. Bg5 {[%clk 0:02:12]}  g6 {[%clk 0:01:36]} 18. Qf3 {[%clk 0:02:06]}  e5 {[%clk 0:01:19]} 19. Nb5 {[%clk 0:01:55]}  Bc6 {[%clk 0:01:09]} 20. Qe2 {[%clk 0:01:26]}  Qc5 {[%clk 0:00:49]} 21. Be3 {[%clk 0:01:20]}  Qd5 {[%clk 0:00:44]} 22. f3 {[%clk 0:01:15]}  Rac8 {[%clk 0:00:36]} 23. Rfd1 {[%clk 0:01:12]}  Qe6 {[%clk 0:00:36]} 24. Bb6 {[%clk 0:01:11]}  Rxd1+ {[%clk 0:00:31]} 25. Rxd1 {[%clk 0:01:12]}  Nd5 {[%clk 0:00:29]} 26. Bf2 {[%clk 0:01:05]}  Nf4 {[%clk 0:00:27]} 27. Qf1 {[%clk 0:01:01]}  Qf6 {[%clk 0:00:20]} 28. h4 {[%clk 0:00:41]}  h5 {[%clk 0:00:19]} 29. Na7 {[%clk 0:00:35]}  Rd8 {[%clk 0:00:18]} 30. Nxc6 {[%clk 0:00:33]}  bxc6 {[%clk 0:00:17]} 31. Be4 {[%clk 0:00:30]}  Rxd1 {[%clk 0:00:15]} 32. Qxd1 {[%clk 0:00:31]}  Kg7 {[%clk 0:00:15]} 33. Qd7 {[%clk 0:00:26]}  Ne2+ {[%clk 0:00:14]} 34. Kf1 {[%clk 0:00:25]}  Nf4 {[%clk 0:00:14]} 35. Qxc6 {[%clk 0:00:23]}  Ne6 {[%clk 0:00:14]} 36. Qd7 {[%clk 0:00:16]}  Qf4 {[%clk 0:00:13]} 37. Qxe7 {[%clk 0:00:14]}  Qc1+ {[%clk 0:00:13]} 38. Be1 {[%clk 0:00:15]}  Qxb2 {[%clk 0:00:13]} 39. Bd5 {[%clk 0:00:14]}  Qb6 {[%clk 0:00:08]} 40. Bxe6 {[%clk 0:00:14]}  Qxe6 {[%clk 0:00:08]} 41. Qxe6 {[%clk 0:00:14]}  fxe6 {[%clk 0:00:08]} 42. c4 {[%clk 0:00:14]}  Kf6 {[%clk 0:00:09]} 43. Bxa5 {[%clk 0:00:14]}  Ke7 {[%clk 0:00:09]} 44. Bb4+ {[%clk 0:00:14]}  Kd7 {[%clk 0:00:09]} 45. a5 {[%clk 0:00:14]}  Kc6 {[%clk 0:00:10]} 46. Ke2 {[%clk 0:00:13]} 1-0


[Site "https://www.chess.com"]

[Event "Titled Tuesday Blitz February 15 Early 2022"]
[White "Hansen, Eric"]
[Black "Terry, Renato"]
[WhiteFideId "2606771"]
[BlackFideId "3803457"]
[WhiteElo "2568"]
[BlackElo "2577"]
[Result "1-0"]
[Round "11"]
[TimeControl "180+1"]
[Date "2022.02.15"]
[WhiteClock "0:01:02"]
[BlackClock "0:00:22"]

1. e4 {[%clk 0:03:00]}  e6 {[%clk 0:03:00]} 2. d4 {[%clk 0:02:59]}  d5 {[%clk 0:03:00]} 3. Nc3 {[%clk 0:02:58]}  Nf6 {[%clk 0:03:00]} 4. Bg5 {[%clk 0:02:53]}  Bb4 {[%clk 0:03:00]} 5. e5 {[%clk 0:02:53]}  h6 {[%clk 0:03:00]} 6. Bc1 {[%clk 0:02:53]}  Ne4 {[%clk 0:02:59]} 7. Ne2 {[%clk 0:02:53]}  c5 {[%clk 0:02:59]} 8. a3 {[%clk 0:02:50]}  cxd4 {[%clk 0:02:49]} 9. axb4 {[%clk 0:02:46]}  dxc3 {[%clk 0:02:49]} 10. bxc3 {[%clk 0:02:36]}  Qc7 {[%clk 0:02:48]} 11. Qd3 {[%clk 0:02:13]}  Qxe5 {[%clk 0:02:08]} 12. f3 {[%clk 0:02:13]}  Nf6 {[%clk 0:02:01]} 13. Bf4 {[%clk 0:02:13]}  Qh5 {[%clk 0:01:58]} 14. g4 {[%clk 0:02:10]}  Qg6 {[%clk 0:01:52]} 15. Qxg6 {[%clk 0:02:10]}  fxg6 {[%clk 0:01:53]} 16. h4 {[%clk 0:02:10]}  Nbd7 {[%clk 0:01:35]} 17. Be3 {[%clk 0:01:50]}  a6 {[%clk 0:01:28]} 18. Nf4 {[%clk 0:01:44]}  Kf7 {[%clk 0:01:27]} 19. Bd3 {[%clk 0:01:42]}  Ne5 {[%clk 0:01:28]} 20. Kf2 {[%clk 0:01:33]}  Bd7 {[%clk 0:01:20]} 21. Bd4 {[%clk 0:01:28]}  Nxd3+ {[%clk 0:00:26]} 22. Nxd3 {[%clk 0:01:29]}  g5 {[%clk 0:00:27]} 23. Ne5+ {[%clk 0:01:29]}  Kg8 {[%clk 0:00:26]} 24. Ng6 {[%clk 0:01:28]}  Rh7 {[%clk 0:00:24]} 25. hxg5 {[%clk 0:01:01]}  hxg5 {[%clk 0:00:24]} 26. Rxh7 {[%clk 0:01:01]}  Kxh7 {[%clk 0:00:22]} 27. Ne7 {[%clk 0:01:02]} 1-0


[Site "https://www.chess.com"]

[Event "Titled Tuesday Blitz February 15 Early 2022"]
[White "Iskusnyh, Sergei"]
[Black "Daneshvar, Bardiya"]
[WhiteFideId "4120027"]
[BlackFideId "12576468"]
[WhiteElo "2492"]
[BlackElo "2295"]
[Result "0-1"]
[Round "11"]
[TimeControl "180+1"]
[Date "2022.02.15"]
[WhiteClock "0:00:01"]
[BlackClock "0:00:18"]

1. d4 {[%clk 0:03:00]}  Nf6 {[%clk 0:02:56]} 2. c4 {[%clk 0:03:00]}  e6 {[%clk 0:02:57]} 3. g3 {[%clk 0:03:00]}  d5 {[%clk 0:02:56]} 4. Bg2 {[%clk 0:02:59]}  Bb4+ {[%clk 0:02:57]} 5. Bd2 {[%clk 0:02:58]}  Be7 {[%clk 0:02:57]} 6. Nf3 {[%clk 0:02:58]}  O-O {[%clk 0:02:58]} 7. O-O {[%clk 0:02:59]}  c6 {[%clk 0:02:56]} 8. Qc2 {[%clk 0:02:59]}  Nbd7 {[%clk 0:02:53]} 9. a3 {[%clk 0:02:55]}  b6 {[%clk 0:02:51]} 10. cxd5 {[%clk 0:02:55]}  cxd5 {[%clk 0:02:52]} 11. Bb4 {[%clk 0:02:56]}  a5 {[%clk 0:02:47]} 12. Bxe7 {[%clk 0:02:54]}  Qxe7 {[%clk 0:02:48]} 13. Rc1 {[%clk 0:02:49]}  Ba6 {[%clk 0:02:48]} 14. Nc3 {[%clk 0:02:49]}  Rfc8 {[%clk 0:02:47]} 15. Qd1 {[%clk 0:02:46]}  Qd6 {[%clk 0:02:46]} 16. e3 {[%clk 0:02:45]}  Rc7 {[%clk 0:02:42]} 17. Bf1 {[%clk 0:02:40]}  Bxf1 {[%clk 0:02:42]} 18. Qxf1 {[%clk 0:02:40]}  Rac8 {[%clk 0:02:18]} 19. Nb5 {[%clk 0:02:32]}  Rxc1 {[%clk 0:02:18]} 20. Rxc1 {[%clk 0:02:32]}  Qb8 {[%clk 0:02:17]} 21. Nd2 {[%clk 0:02:25]}  Ne8 {[%clk 0:02:12]} 22. Nb1 {[%clk 0:02:09]}  Qb7 {[%clk 0:01:59]} 23. Qd1 {[%clk 0:01:59]}  Rc6 {[%clk 0:01:51]} 24. Rc3 {[%clk 0:01:54]}  Rxc3 {[%clk 0:01:51]} 25. N1xc3 {[%clk 0:01:53]}  Qc6 {[%clk 0:01:51]} 26. Qd3 {[%clk 0:01:44]}  g6 {[%clk 0:01:47]} 27. h4 {[%clk 0:01:42]}  Ndf6 {[%clk 0:01:43]} 28. Kg2 {[%clk 0:01:39]}  h5 {[%clk 0:01:41]} 29. Qd1 {[%clk 0:01:34]}  Ng4 {[%clk 0:01:36]} 30. Qa4 {[%clk 0:01:22]}  Nef6 {[%clk 0:01:22]} 31. Qb3 {[%clk 0:00:50]}  Kg7 {[%clk 0:01:12]} 32. a4 {[%clk 0:00:47]}  Nh6 {[%clk 0:01:08]} 33. Qa3 {[%clk 0:00:44]}  Nf5 {[%clk 0:01:05]} 34. Qb3 {[%clk 0:00:38]}  Ng4 {[%clk 0:00:58]} 35. Kg1 {[%clk 0:00:34]}  Qc8 {[%clk 0:00:50]} 36. Qd1 {[%clk 0:00:33]}  Qc4 {[%clk 0:00:46]} 37. Qc2 {[%clk 0:00:20]}  Qb4 {[%clk 0:00:39]} 38. Na3 {[%clk 0:00:13]}  Qe7 {[%clk 0:00:33]} 39. Nab5 {[%clk 0:00:13]}  g5 {[%clk 0:00:28]} 40. hxg5 {[%clk 0:00:11]}  Qxg5 {[%clk 0:00:29]} 41. Qe2 {[%clk 0:00:11]}  h4 {[%clk 0:00:26]} 42. Qf3 {[%clk 0:00:11]}  hxg3 {[%clk 0:00:25]} 43. fxg3 {[%clk 0:00:09]}  Ngxe3 {[%clk 0:00:24]} 44. Kf2 {[%clk 0:00:09]}  Ng4+ {[%clk 0:00:22]} 45. Ke1 {[%clk 0:00:07]}  Qc1+ {[%clk 0:00:20]} 46. Nd1 {[%clk 0:00:08]}  Nf6 {[%clk 0:00:18]} 47. Nc3 {[%clk 0:00:09]}  Nxd4 {[%clk 0:00:18]} 48. Qd3 {[%clk 0:00:07]}  Nf5 {[%clk 0:00:17]} 49. Ke2 {[%clk 0:00:05]}  Qg5 {[%clk 0:00:17]} 50. Kf2 {[%clk 0:00:03]}  Ng4+ {[%clk 0:00:17]} 51. Kg2 {[%clk 0:00:03]}  Qh5 {[%clk 0:00:17]} 52. Kf1 {[%clk 0:00:01]}  Qh1+ {[%clk 0:00:17]} 53. Ke2 {[%clk 0:00:01]}  Qg2+ {[%clk 0:00:17]} 54. Ke1 {[%clk 0:00:01]}  Ne5 {[%clk 0:00:17]} 55. Qe2 {[%clk 0:00:01]}  Nf3+ {[%clk 0:00:17]} 56. Qxf3 {[%clk 0:00:01]}  Qxf3 {[%clk 0:00:18]} 0-1


[Site "https://www.chess.com"]